fUST/lending_fUST_20250325
["ID","MTS","AMOUNT","RATE_DAILY","PERIOD"]
[356628508,1742853033080,-500.0,0.00013698,2]
[356628509,1742853033089,-500.0,0.00013698,2]
[356628510,1742853033099,-500.0,0.00013698,2]
[356628511,1742853033109,-500.0,0.00013698,2]
[356628512,1742853033119,-500.0,0.00013698,2]
[356628513,1742853033129,-500.0,0.00013698,2]
[356628514,1742853033138,-500.0,0.00013698,2]
[356628515,1742853033148,-500.0,0.00013698,2]
[356628516,1742853033158,-500.0,0.00013698,2]
[356628517,1742853033170,-500.0,0.00013698,2]
[356628518,1742853033179,-500.0,0.00013698,2]
[356628519,1742853033189,-500.0,0.00013698,2]
[356628520,1742853033199,-500.0,0.00013698,2]
[356628521,1742853033209,-500.0,0.00013698,2]
[356628522,1742853033222,-500.0,0.00013698,2]
[356628523,1742853033233,-500.0,0.00013698,2]
[356628524,1742853033242,-523.10620062,0.00013698,2]
[356628525,1742853033252,-500.0,0.00013698,2]
[356628526,1742853033262,-500.0,0.00013698,2]
[356628527,1742853033271,-500.0,0.00013698,2]
[356628528,1742853033281,-500.0,0.00013698,2]
[356628529,1742853033291,-500.0,0.00013698,2]
[356628530,1742853033301,-500.0,0.00013698,2]
[356628531,1742853033311,-500.0,0.00013698,2]
[356628532,1742853033320,-508.4615959,0.00013698,2]
[356628533,1742853033330,-500.0,0.00013698,2]
[356628534,1742853033339,-500.0,0.00013698,2]
[356628535,1742853033349,-521.34042286,0.00013698,2]
[356628536,1742853033358,-512.71540547,0.00013698,2]
[356628537,1742853033368,-500.0,0.00013698,2]
[356628538,1742853033377,-500.0,0.00013698,2]
[356628539,1742853033387,-522.32834109,0.00013698,2]
[356628540,1742853033397,-500.0,0.00013698,2]
[356628541,1742853033406,-500.0,0.00013698,2]
[356628542,1742853033416,-500.0,0.00013698,2]
[356628543,1742853033425,-513.98370937,0.00013698,2]
[356628544,1742853033435,-500.0,0.00013698,2]
[356628545,1742853033444,-522.782498,0.00013698,2]
[356628546,1742853033453,-508.13,0.00013698,2]
[356628547,1742853033463,-500.0,0.00013698,2]
[356628548,1742853033472,-500.0,0.00013698,2]
[356628549,1742853033482,-509.52999799,0.00013698,2]
[356628550,1742853033491,-508.46729139,0.00013698,2]
[356628551,1742853033501,-500.0,0.00013698,2]
[356628552,1742853033511,-500.0,0.00013698,2]
[356628553,1742853033520,-581.88795399,0.00013698,2]
[356628554,1742853033530,-500.0,0.00013698,2]
[356628555,1742853033540,-500.0,0.00013698,2]
[356628556,1742853033549,-500.0,0.00013698,2]
[356628557,1742853033559,-500.0,0.00013698,2]
[356628558,1742853033568,-500.0,0.00013698,2]
[356628559,1742853033578,-500.0,0.00013698,2]
[356628560,1742853033588,-266.91048997,0.00013698,2]
[356628561,1742853033597,-500.0,0.00013698,2]
[356628562,1742853033607,-500.0,0.00013698,2]
[356628563,1742853033616,-500.0,0.00013698,2]
[356628564,1742853033626,-500.0,0.00013698,2]
[356628565,1742853033636,-500.0,0.00013698,2]
[356628566,1742853033645,-500.0,0.00013698,2]
[356628567,1742853033655,-500.0,0.00013698,2]
[356628568,1742853033665,-500.0,0.00013698,2]
[356628569,1742853033675,-500.0,0.00013698,2]
[356628570,1742853033684,-500.0,0.00013698,2]
[356628571,1742853033694,-500.0,0.00013698,2]
[356628572,1742853033704,-500.0,0.00013698,2]
[356628573,1742853033714,-500.0,0.00013698,2]
[356628574,1742853033724,-500.0,0.00013698,2]
[356628575,1742853033733,-500.0,0.00013698,2]
[356628576,1742853033743,-500.0,0.00013698,2]
[356628577,1742853033752,-500.0,0.00013698,2]
[356628578,1742853033762,-500.0,0.00013698,2]
[356628579,1742853033772,-500.0,0.00013698,2]
[356628580,1742853033782,-500.0,0.00013698,2]
[356628581,1742853033791,-500.0,0.00013698,2]
[356628582,1742853033801,-500.0,0.00013698,2]
[356628583,1742853033811,-500.0,0.00013698,2]
[356628584,1742853033821,-500.0,0.00013698,2]
[356628585,1742853033831,-500.0,0.00013698,2]
[356628586,1742853033840,-500.0,0.00013698,2]
[356628587,1742853033850,-500.0,0.00013698,2]
[356628588,1742853033860,-999.13,0.00013698,2]
[356628589,1742853033870,-500.0,0.00013698,2]
[356628590,1742853033880,-500.0,0.00013698,2]
[356628591,1742853033890,-500.0,0.00013698,2]
[356628592,1742853033900,-500.0,0.00013698,2]
[356628593,1742853033909,-500.0,0.00013698,2]
[356628594,1742853033920,-504.36,0.00013698,2]
[356628595,1742853033929,-500.0,0.00013698,2]
[356628596,1742853033938,-500.0,0.00013698,2]
[356628597,1742853033947,-500.0,0.00013698,2]
[356628598,1742853033957,-500.0,0.00013698,2]
[356628599,1742853033967,-955.98,0.00013698,2]
[356628600,1742853033977,-500.0,0.00013698,2]
[356628601,1742853033990,-500.0,0.00013698,2]
[356628602,1742853034000,-1052.5,0.00013698,2]
[356628603,1742853034009,-500.0,0.00013698,2]
[356628604,1742853034021,-500.0,0.00013698,2]
[356628605,1742853034030,-500.0,0.00013698,2]
[356628606,1742853034040,-500.0,0.00013698,2]
[356628607,1742853034050,-500.0,0.00013698,2]
[356628608,1742853034059,-1299.9,0.00013698,2]
[356628609,1742853034069,-500.0,0.00013698,2]
[356628610,1742853034079,-500.0,0.00013698,2]
[356628611,1742853034089,-500.0,0.00013698,2]
[356628612,1742853034099,-500.0,0.00013698,2]
[356628613,1742853034108,-500.0,0.00013698,2]
[356628614,1742853034118,-500.0,0.00013698,2]
[356628615,1742853034127,-1391.46,0.00013698,2]
[356628616,1742853034137,-500.0,0.00013698,2]
[356628617,1742853034147,-500.0,0.00013698,2]
[356628618,1742853034157,-500.0,0.00013698,2]
[356628619,1742853034166,-500.0,0.00013698,2]
[356628620,1742853034175,-630.7160254,0.00013698,2]
[356628621,1742853034185,-500.0,0.00013698,2]
[356628622,1742853034195,-544.12,0.00013698,2]
[356628623,1742853034205,-500.0,0.00013698,2]
[356628624,1742853034215,-500.0,0.00013698,2]
[356628625,1742853034224,-500.0,0.00013698,2]
[356628626,1742853034234,-506.59116924,0.00013698,2]
[356628627,1742853034243,-540.74,0.00013698,2]
[356628628,1742853034253,-521.02,0.00013698,2]
[356628629,1742853034263,-500.0,0.00013698,2]
[356628630,1742853034272,-412.73499574,0.00013698,2]
[356628631,1742853034282,-500.0,0.00013698,2]
[356628632,1742853034291,-1129.66,0.00013698,2]
[356628633,1742853034300,-500.0,0.00013698,2]
[356628634,1742853034310,-500.0,0.00013698,2]
[356628635,1742853034319,-500.0,0.00013698,2]
[356628636,1742853034329,-406.35014379,0.00013698,2]
[356628637,1742853034338,-500.0,0.00013698,2]
[356628638,1742853034348,-539.89,0.00013698,2]
[356628639,1742853034357,-500.0,0.00013698,2]
[356628640,1742853034367,-500.0,0.00013698,2]
[356628641,1742853034377,-500.0,0.00013698,2]
[356628642,1742853034386,-500.0,0.00013698,2]
[356628643,1742853034396,-507.98,0.00013698,2]
[356628644,1742853034406,-500.0,0.00013698,2]
[356628645,1742853034415,-989.28,0.00013698,2]
[356628646,1742853034425,-500.0,0.00013698,2]
[356628647,1742853034435,-500.0,0.00013698,2]
[356628648,1742853034445,-500.0,0.00013698,2]
[356628649,1742853034454,-500.0,0.00013698,2]
[356628650,1742853034463,-500.0,0.00013698,2]
[356628651,1742853034472,-500.0,0.00013698,2]
[356628652,1742853034482,-500.0,0.00013698,2]
[356628653,1742853034492,-500.0,0.00013698,2]
[356628654,1742853034501,-500.0,0.00013698,2]
[356628655,1742853034511,-500.0,0.00013698,2]
[356628656,1742853034521,-500.0,0.00013698,2]
[356628657,1742853034531,-500.0,0.00013698,2]
[356628658,1742853034541,-517.2846947,0.00013698,2]
[356628659,1742853034551,-500.0,0.00013698,2]
[356628660,1742853034561,-500.0,0.00013698,2]
[356628661,1742853034570,-500.0,0.00013698,2]
[356628662,1742853034580,-500.0,0.00013698,2]
[356628663,1742853034590,-500.0,0.00013698,2]
[356628664,1742853034600,-532.74474877,0.00013698,2]
[356628665,1742853034609,-500.0,0.00013698,2]
[356628666,1742853034619,-500.0,0.00013698,2]
[356628667,1742853034629,-500.0,0.00013698,2]
[356628668,1742853034639,-704.59,0.00013698,2]
[356628669,1742853034649,-540.89783796,0.00013698,2]
[356628670,1742853034658,-500.0,0.00013698,2]
[356628671,1742853034668,-500.0,0.00013698,2]
[356628672,1742853034678,-500.0,0.00013698,2]
[356628673,1742853034688,-1037.01,0.00013698,2]
[356628674,1742853034698,-500.0,0.00013698,2]
[356628675,1742853034838,-500.0,0.00013698,2]
[356628676,1742853034848,-392.07943328,0.00013698,2]
[356628677,1742853034858,-551.39,0.00013698,2]
[356628678,1742853034868,-500.0,0.00013698,2]
[356628679,1742853034878,-500.0,0.00013698,2]
[356628680,1742853034888,-526.63,0.00013698,2]
[356628681,1742853034898,-512.79802894,0.00013698,2]
[356628682,1742853034908,-500.0,0.00013698,2]
[356628683,1742853034917,-500.0,0.00013698,2]
[356628684,1742853034927,-500.0,0.00013698,2]
[356628685,1742853034937,-500.0,0.00013698,2]
[356628686,1742853034946,-564.14,0.00013698,2]
[356628687,1742853034956,-500.0,0.00013698,2]
[356628688,1742853034965,-3259.08,0.00013698,2]
[356628689,1742853034975,-396.01721377,0.00013698,2]
[356628690,1742853034989,-500.0,0.00013698,2]
[356628691,1742853034999,-506.96852348,0.00013698,2]
[356628692,1742853035009,-500.0,0.00013698,2]
[356628693,1742853035019,-500.0,0.00013698,2]
[356628694,1742853035030,-500.0,0.00013698,2]
[356628695,1742853035040,-500.0,0.00013698,2]
[356628696,1742853035051,-500.0,0.00013698,2]
[356628697,1742853035061,-500.0,0.00013698,2]
[356628698,1742853035070,-500.0,0.00013698,2]
[356628699,1742853035080,-500.0,0.00013698,2]
[356628700,1742853035090,-500.0,0.00013698,2]
[356628701,1742853035099,-500.0,0.00013698,2]
[356628702,1742853035109,-500.0,0.00013698,2]
[356628703,1742853035118,-509.08683198,0.00013698,2]
[356628704,1742853035128,-500.0,0.00013698,2]
[356628705,1742853035137,-500.0,0.00013698,2]
[356628706,1742853035147,-1266.65,0.00013698,2]
[356628707,1742853035157,-523.12274603,0.00013698,2]
[356628708,1742853035166,-500.0,0.00013698,2]
[356628709,1742853035175,-500.0,0.00013698,2]
[356628710,1742853035185,-500.0,0.00013698,2]
[356628711,1742853035195,-500.0,0.00013698,2]
[356628712,1742853035204,-718.32,0.00013698,2]
[356628713,1742853035214,-500.0,0.00013698,2]
[356628714,1742853035224,-500.0,0.00013698,2]
[356628715,1742853035234,-500.0,0.00013698,2]
[356628716,1742853035243,-500.0,0.00013698,2]
[356628717,1742853035252,-500.0,0.00013698,2]
[356628718,1742853035261,-500.0,0.00013698,2]
[356628719,1742853035271,-1180.05,0.00013698,2]
[356628720,1742853035280,-500.0,0.00013698,2]
[356628721,1742853035289,-500.0,0.00013698,2]
[356628722,1742853035299,-535.35241792,0.00013698,2]
[356628723,1742853035309,-500.0,0.00013698,2]
[356628724,1742853035318,-500.0,0.00013698,2]
[356628725,1742853035327,-500.0,0.00013698,2]
[356628726,1742853035337,-500.0,0.00013698,2]
[356628727,1742853035346,-500.0,0.00013698,2]
[356628728,1742853035355,-513.0688388,0.00013698,2]
[356628729,1742853035365,-500.0,0.00013698,2]
[356628730,1742853035374,-508.55786204,0.00013698,2]
[356628731,1742853035384,-514.53170257,0.00013698,2]
[356628732,1742853035393,-522.93956145,0.00013698,2]
[356628733,1742853035403,-500.0,0.00013698,2]
[356628734,1742853035412,-521.92576671,0.00013698,2]
[356628735,1742853035422,-500.0,0.00013698,2]
[356628736,1742853035432,-500.0,0.00013698,2]
[356628737,1742853035442,-500.0,0.00013698,2]
[356628738,1742853035451,-500.0,0.00013698,2]
[356628739,1742853035460,-2060.93,0.00013698,2]
[356628740,1742853035470,-500.0,0.00013698,2]
[356628741,1742853035479,-746.71,0.00013698,2]
[356628742,1742853035488,-975.68,0.00013698,2]
[356628743,1742853035497,-500.0,0.00013698,2]
[356628744,1742853035507,-500.0,0.00013698,2]
[356628745,1742853035516,-500.0,0.00013698,2]
[356628746,1742853035526,-500.0,0.00013698,2]
[356628747,1742853035535,-500.0,0.00013698,2]
[356628748,1742853035544,-500.0,0.00013698,2]
[356628749,1742853035554,-500.0,0.00013698,2]
[356628750,1742853035563,-500.0,0.00013698,2]
[356628751,1742853035572,-500.0,0.00013698,2]
[356628752,1742853035582,-531.01323481,0.00013698,2]
[356628753,1742853035591,-500.0,0.00013698,2]
[356628754,1742853035600,-500.0,0.00013698,2]
[356628755,1742853035610,-500.0,0.00013698,2]
[356628756,1742853035619,-500.0,0.00013698,2]
[356628757,1742853035629,-654.08,0.00013698,2]
[356628758,1742853035638,-509.6936127,0.00013698,2]
[356628759,1742853035647,-500.0,0.00013698,2]
[356628760,1742853035657,-925.23,0.00013698,2]
[356628761,1742853035666,-3695.62,0.00013698,2]
[356628762,1742853035675,-500.0,0.00013698,2]
[356628763,1742853035685,-500.0,0.00013698,2]
[356628764,1742853035695,-1768.23,0.00013698,2]
[356628765,1742853035704,-500.0,0.00013698,2]
[356628766,1742853035714,-500.0,0.00013698,2]
[356628767,1742853035723,-504.05799323,0.00013698,2]
[356628768,1742853035733,-500.0,0.00013698,2]
[356628769,1742853035742,-500.0,0.00013698,2]
[356628770,1742853035751,-500.0,0.00013698,2]
[356628771,1742853035761,-500.0,0.00013698,2]
[356628772,1742853035770,-500.0,0.00013698,2]
[356628773,1742853035779,-925.34,0.00013698,2]
[356628774,1742853035788,-500.0,0.00013698,2]
[356628775,1742853035798,-583.93893725,0.00013698,2]
[356628776,1742853035808,-2292.64,0.00013698,2]
[356628777,1742853035817,-655.5,0.00013698,2]
[356628778,1742853035827,-936.217075,0.00013698,2]
[356628779,1742853035836,-936.217075,0.00013698,2]
[356628780,1742853035846,-500.0,0.00013698,2]
[356628781,1742853035855,-936.217075,0.00013698,2]
[356628782,1742853035865,-500.0,0.00013698,2]
[356628783,1742853035874,-936.217075,0.00013698,2]
[356628784,1742853035884,-936.217075,0.00013698,2]
[356628785,1742853035893,-936.217075,0.00013698,2]
[356628786,1742853035902,-2011.89,0.00013698,2]
[356628787,1742853035911,-936.217075,0.00013698,2]
[356628788,1742853035921,-500.0,0.00013698,2]
[356628789,1742853035930,-936.217075,0.00013698,2]
[356628790,1742853035940,-936.217075,0.00013698,2]
[356628791,1742853035949,-500.0,0.00013698,2]
[356628792,1742853035958,-936.217075,0.00013698,2]
[356628793,1742853035967,-936.217075,0.00013698,2]
[356628794,1742853035980,-503.85906966,0.00013698,2]
[356628795,1742853035989,-936.217075,0.00013698,2]
[356628796,1742853035998,-500.0,0.00013698,2]
[356628797,1742853036007,-936.217075,0.00013698,2]
[356628798,1742853036017,-936.217075,0.00013698,2]
[356628799,1742853036027,-936.217075,0.00013698,2]
[356628800,1742853036036,-936.217075,0.00013698,2]
[356628801,1742853036046,-606.15572465,0.00013698,2]
[356628802,1742853036056,-506.34290524,0.00013698,2]
[356628803,1742853036065,-581.67,0.00013698,2]
[356628804,1742853036074,-506.11584889,0.00013698,2]
[356628805,1742853036083,-1588.6,0.00013698,2]
[356628806,1742853036092,-581.15,0.00013698,2]
[356628807,1742853036102,-500.0,0.00013698,2]
[356628808,1742853036111,-500.0,0.00013698,2]
[356628809,1742853036120,-1365.37,0.00013698,2]
[356628810,1742853036129,-500.0,0.00013698,2]
[356628811,1742853036138,-1135.07,0.00013698,2]
[356628812,1742853036149,-524.153995,0.00013698,2]
[356628813,1742853036158,-500.0,0.00013698,2]
[356628814,1742853036168,-503.34967336,0.00013698,2]
[356628815,1742853036177,-500.0,0.00013698,2]
[356628816,1742853036187,-500.0,0.00013698,2]
[356628817,1742853036196,-752.27,0.00013698,2]
[356628818,1742853036205,-500.0,0.00013698,2]
[356628819,1742853036214,-504.10000735,0.00013698,2]
[356628820,1742853036223,-2528.11,0.00013698,2]
[356628821,1742853036232,-4781.47,0.00013698,2]
[356628822,1742853036241,-500.0,0.00013698,2]
[356628823,1742853036250,-500.0,0.00013698,2]
[356628824,1742853036259,-500.0,0.00013698,2]
[356628825,1742853036268,-1636.63,0.00013698,2]
[356628826,1742853036277,-770.91,0.00013698,2]
[356628827,1742853036287,-503.27116178,0.00013698,2]
[356628828,1742853036296,-508.55796318,0.00013698,2]
[356628829,1742853036305,-500.0,0.00013698,2]
[356628830,1742853036315,-500.0,0.00013698,2]
[356628831,1742853036324,-503.22438809,0.00013698,2]
[356628832,1742853036333,-1712.49,0.00013698,2]
[356628833,1742853036342,-1265.12,0.00013698,2]
[356628834,1742853036351,-500.0,0.00013698,2]
[356628835,1742853036360,-500.0,0.00013698,2]
[356628836,1742853036369,-500.0,0.00013698,2]
[356628837,1742853036378,-500.0,0.00013698,2]
[356628838,1742853036387,-502.03,0.00013698,2]
[356628839,1742853036396,-500.0,0.00013698,2]
[356628840,1742853036405,-2591.57,0.00013698,2]
[356628841,1742853036415,-500.0,0.00013698,2]
[356628842,1742853036424,-578.55,0.00013698,2]
[356628843,1742853036433,-503.82972755,0.00013698,2]
[356628844,1742853036442,-1928.15,0.00013698,2]
[356628845,1742853036451,-500.0,0.00013698,2]
[356628846,1742853036460,-500.0,0.00013698,2]
[356628847,1742853036469,-504.50460727,0.00013698,2]
[356628848,1742853036478,-500.0,0.00013698,2]
[356628849,1742853036487,-500.0,0.00013698,2]
[356628850,1742853036496,-501.85327091,0.00013698,2]
[356628851,1742853036505,-624.27231469,0.00013698,2]
[356628852,1742853036515,-536.29,0.00013698,2]
[356628853,1742853036524,-635.94,0.00013698,2]
[356628854,1742853036533,-500.0,0.00013698,2]
[356628855,1742853036542,-501.48818408,0.00013698,2]
[356628856,1742853036551,-211.00575923,0.00013698,2]
[356628857,1742853036560,-500.0,0.00013698,2]
[356628858,1742853036570,-502.52481817,0.00013698,2]
[356628859,1742853036579,-500.0,0.00013698,2]
[356628860,1742853036588,-996.35,0.00013698,2]
[356628861,1742853036598,-500.0,0.00013698,2]
[356628862,1742853036607,-3243.41,0.00013698,2]
[356628863,1742853036617,-505.36226146,0.00013698,2]
[356628864,1742853036626,-500.0,0.00013698,2]
[356628865,1742853036635,-500.0,0.00013698,2]
[356628866,1742853036644,-500.0,0.00013698,2]
[356628867,1742853036653,-522.68610404,0.00013698,2]
[356628868,1742853036662,-500.0,0.00013698,2]
[356628869,1742853036671,-1135.24,0.00013698,2]
[356628870,1742853036681,-500.0,0.00013698,2]
[356628871,1742853036690,-500.0,0.00013698,2]
[356628872,1742853036699,-728.36,0.00013698,2]
[356628873,1742853036708,-506.11943242,0.00013698,2]
[356628874,1742853036717,-516.33709123,0.00013698,2]
[356628875,1742853036727,-500.0,0.00013698,2]
[356628876,1742853036736,-513.78291916,0.00013698,2]
[356628877,1742853036745,-500.0,0.00013698,2]
[356628878,1742853036754,-520.90340397,0.00013698,2]
[356628879,1742853036763,-663.91,0.00013698,2]
[356628880,1742853036772,-500.0,0.00013698,2]
[356628881,1742853036782,-500.0,0.00013698,2]
[356628882,1742853036791,-500.0,0.00013698,2]
[356628883,1742853036800,-5797.81,0.00013698,2]
[356628884,1742853036808,-6863.21,0.00013698,2]
[356628885,1742853036817,-517.9048061,0.00013698,2]
[356628886,1742853036827,-815.38,0.00013698,2]
[356628887,1742853036835,-628.68,0.00013698,2]
[356628888,1742853036844,-500.0,0.00013698,2]
[356628889,1742853036853,-1225.9,0.00013698,2]
[356628890,1742853036862,-500.0,0.00013698,2]
[356628891,1742853036872,-535.54665263,0.00013698,2]
[356628892,1742853036882,-500.0,0.00013698,2]
[356628893,1742853036891,-500.0,0.00013698,2]
[356628894,1742853036900,-522.64665209,0.00013698,2]
[356628895,1742853036909,-500.0,0.00013698,2]
[356628896,1742853036918,-484.17378765,0.00013698,2]
[356628897,1742853036927,-500.0,0.00013698,2]
[356628898,1742853036936,-500.0,0.00013698,2]
[356628899,1742853036945,-3264.87,0.00013698,2]
[356628900,1742853036954,-500.0,0.00013698,2]
[356628901,1742853036964,-500.0,0.00013698,2]
[356628902,1742853036973,-513.36792694,0.00013698,2]
[356628903,1742853036986,-523.50252952,0.00013698,2]
[356628904,1742853036995,-500.0,0.00013698,2]
[356628905,1742853037004,-523.70730233,0.00013698,2]
[356628906,1742853037013,-500.0,0.00013698,2]
[356628907,1742853037024,-500.0,0.00013698,2]
[356628908,1742853037033,-500.0,0.00013698,2]
[356628909,1742853037042,-521.16547266,0.00013698,2]
[356628910,1742853037052,-635.02,0.00013698,2]
[356628911,1742853037062,-124286.81,0.00013698,2]
[356628912,1742853037073,-562.75309869,0.00013698,2]
[356628913,1742853037083,-500.0,0.00013698,2]
[356628914,1742853037092,-6384.52,0.00013698,2]
[356628915,1742853037203,-508.40456084,0.00013698,2]
[356628916,1742853037213,-500.0,0.00013698,2]
[356628917,1742853037223,-1037.83,0.00013698,2]
[356628918,1742853037232,-2798.96,0.00013698,2]
[356628919,1742853037241,-150.18,0.00013698,2]
[356628920,1742853037250,-500.0,0.00013698,2]
[356628921,1742853037259,-318.27888118,0.00013698,2]
[356628922,1742853037269,-515.0705595,0.00013698,2]
[356628923,1742853037278,-662.29,0.00013698,2]
[356628924,1742853037287,-500.0,0.00013698,2]
[356628925,1742853037297,-500.0,0.00013698,2]
[356628926,1742853037306,-500.0,0.00013698,2]
[356628927,1742853037315,-957.79,0.00013698,2]
[356628928,1742853037324,-500.0,0.00013698,2]
[356628929,1742853037333,-529.21285432,0.00013698,2]
[356628930,1742853037342,-3257.01,0.00013698,2]
[356628931,1742853037351,-1593.95,0.00013698,2]
[356628932,1742853037360,-1063.57,0.00013698,2]
[356628933,1742853037369,-2705.12,0.00013698,2]
[356628934,1742853037378,-500.0,0.00013698,2]
[356628935,1742853037387,-500.0,0.00013698,2]
[356628936,1742853037396,-500.0,0.00013698,2]
[356628937,1742853037406,-500.0,0.00013698,2]
[356628938,1742853037416,-546.67,0.00013698,2]
[356628939,1742853037425,-500.0,0.00013698,2]
[356628940,1742853037435,-1270.14,0.00013698,2]
[356628941,1742853037444,-500.0,0.00013698,2]
[356628942,1742853037454,-500.0,0.00013698,2]
[356628943,1742853037463,-500.0,0.00013698,2]
[356628944,1742853037473,-1087.1,0.00013698,2]
[356628945,1742853037482,-1640.61,0.00013698,2]
[356628946,1742853037492,-500.0,0.00013698,2]
[356628947,1742853037501,-500.0,0.00013698,2]
[356628948,1742853037511,-500.0,0.00013698,2]
[356628949,1742853037520,-521.04,0.00013698,2]
[356628950,1742853037530,-610.52,0.00013698,2]
[356628951,1742853037539,-500.0,0.00013698,2]
[356628952,1742853037548,-410.06471496,0.00013698,2]
[356628953,1742853037558,-1178.35,0.00013698,2]
[356628954,1742853037568,-500.0,0.00013698,2]
[356628955,1742853037577,-500.0,0.00013698,2]
[356628956,1742853037587,-500.0,0.00013698,2]
[356628957,1742853037596,-500.0,0.00013698,2]
[356628958,1742853037606,-4756.02,0.00013698,2]
[356628959,1742853037616,-500.0,0.00013698,2]
[356628960,1742853037625,-2157.56,0.00013698,2]
[356628961,1742853037635,-607.35,0.00013698,2]
[356628962,1742853037644,-500.0,0.00013698,2]
[356628963,1742853037653,-500.0,0.00013698,2]
[356628964,1742853037662,-500.0,0.00013698,2]
[356628965,1742853037672,-500.0,0.00013698,2]
[356628966,1742853037682,-500.0,0.00013698,2]
[356628967,1742853037692,-151.0,0.00013698,2]
[356628968,1742853037701,-5782.71,0.00013698,2]
[356628969,1742853037712,-545.25,0.00013698,2]
[356628970,1742853037721,-500.0,0.00013698,2]
[356628971,1742853037731,-500.0,0.00013698,2]
[356628972,1742853037740,-152.0,0.00013698,2]
[356628974,1742853037750,-500.0,0.00013698,2]
[356628976,1742853037759,-500.0,0.00013698,2]
[356628978,1742853037769,-500.0,0.00013698,2]
[356628979,1742853037778,-500.0,0.00013698,2]
[356628980,1742853037788,-500.0,0.00013698,2]
[356628981,1742853037798,-500.0,0.00013698,2]
[356628982,1742853037807,-500.0,0.00013698,2]
[356628983,1742853037816,-500.0,0.00013698,2]
[356628985,1742853037826,-500.0,0.00013698,2]
[356628987,1742853037835,-596.762034,0.00013699,2]
[356628989,1742853037845,-562.9287779,0.00013699,2]
[356628990,1742853037854,-500.0,0.00013699,2]
[356628991,1742853037864,-500.0,0.00013699,2]
[356628992,1742853037874,-500.0,0.00013699,2]
[356628993,1742853037883,-500.0,0.00013699,2]
[356628994,1742853037893,-500.0,0.00013699,2]
[356628995,1742853037902,-500.0,0.00013699,2]
[356628996,1742853037911,-500.0,0.00013699,2]
[356628998,1742853037920,-165.61813602,0.00013699,2]
[356629000,1742853037930,-500.0,0.00013699,2]
[356629002,1742853037940,-500.0,0.00013699,2]
[356629004,1742853037949,-500.0,0.00013699,2]
[356629005,1742853037959,-500.0,0.00013699,2]
[356629006,1742853037968,-500.0,0.00013699,2]
[356629008,1742853037978,-500.0,0.00013699,2]
[356629009,1742853037990,-500.0,0.00013699,2]
[356629010,1742853038000,-500.0,0.00013699,2]
[356629011,1742853038010,-151.0,0.000137,2]
[356629012,1742853038019,-151.0,0.000137,2]
[356629013,1742853038028,-629.0,0.000137,2]
[356629015,1742853038037,-192.1311,0.000137,2]
[356629017,1742853038047,-151.0,0.000138,2]
[356629019,1742853038059,-55812.15078654,0.00013832,2]
[356629020,1742853038069,-33414.31552869,0.00013832,2]
[356629021,1742853038079,-936.217075,0.00013832,2]